[Event "Titled Tuesday Blitz December 27 Early 2022"]
[White "Zierk, Steven"]
[Black "Martinez Alcantara, Jose Eduardo"]
[WhiteFideId "2034255"]
[BlackFideId "3805662"]
[WhiteElo "2488"]
[BlackElo "2619"]
[Result "0-1"]
[Round "05"]
[TimeControl "180+2"]
[Date "2022.12.27"]
[WhiteClock "0:00:01"]
[BlackClock "0:00:06"]

1. e4 {[%clk 0:03:00]}  c5 {[%clk 0:02:53]} 2. Nf3 {[%clk 0:03:00]}  d6 {[%clk 0:02:52]} 3. d4 {[%clk 0:02:59]}  cxd4 {[%clk 0:02:53]} 4. Nxd4 {[%clk 0:03:00]}  Nf6 {[%clk 0:02:54]} 5. f3 {[%clk 0:03:00]}  e6 {[%clk 0:02:53]} 6. c4 {[%clk 0:03:00]}  Be7 {[%clk 0:02:54]} 7. Nc3 {[%clk 0:02:59]}  O-O {[%clk 0:02:54]} 8. Be2 {[%clk 0:02:59]}  Nc6 {[%clk 0:02:55]} 9. Be3 {[%clk 0:02:57]}  d5 {[%clk 0:02:55]} 10. cxd5 {[%clk 0:02:49]}  exd5 {[%clk 0:02:56]} 11. Nxc6 {[%clk 0:02:48]}  bxc6 {[%clk 0:02:57]} 12. exd5 {[%clk 0:02:49]}  Nxd5 {[%clk 0:02:54]} 13. Nxd5 {[%clk 0:02:49]}  cxd5 {[%clk 0:02:54]} 14. O-O {[%clk 0:02:48]}  Bf6 {[%clk 0:02:52]} 15. Bd4 {[%clk 0:02:47]}  Rb8 {[%clk 0:02:35]} 16. Rc1 {[%clk 0:02:28]}  Re8 {[%clk 0:02:30]} 17. Re1 {[%clk 0:02:22]}  Bf5 {[%clk 0:02:23]} 18. b3 {[%clk 0:02:17]}  g6 {[%clk 0:01:46]} 19. Bxf6 {[%clk 0:01:37]}  Qxf6 {[%clk 0:01:47]} 20. Qxd5 {[%clk 0:01:37]}  Rbd8 {[%clk 0:01:42]} 21. Qc5 {[%clk 0:01:29]}  Rc8 {[%clk 0:01:38]} 22. Qf2 {[%clk 0:01:20]}  Rxc1 {[%clk 0:01:26]} 23. Rxc1 {[%clk 0:01:21]}  Qb2 {[%clk 0:01:25]} 24. Re1 {[%clk 0:01:20]}  Qd2 {[%clk 0:00:42]} 25. Kf1 {[%clk 0:01:06]}  Qxa2 {[%clk 0:00:27]} 26. Bc4 {[%clk 0:01:03]}  Qxf2+ {[%clk 0:00:20]} 27. Kxf2 {[%clk 0:01:04]}  Rxe1 {[%clk 0:00:20]} 28. Kxe1 {[%clk 0:01:05]}  Kf8 {[%clk 0:00:21]} 29. Kd2 {[%clk 0:01:05]}  Ke7 {[%clk 0:00:22]} 30. Kc3 {[%clk 0:01:05]}  f6 {[%clk 0:00:19]} 31. Kb4 {[%clk 0:01:04]}  Kd6 {[%clk 0:00:20]} 32. Kb5 {[%clk 0:01:02]}  Bc8 {[%clk 0:00:19]} 33. f4 {[%clk 0:00:58]}  g5 {[%clk 0:00:18]} 34. g3 {[%clk 0:00:55]}  h6 {[%clk 0:00:18]} 35. b4 {[%clk 0:00:51]}  gxf4 {[%clk 0:00:18]} 36. gxf4 {[%clk 0:00:51]}  Bb7 {[%clk 0:00:18]} 37. Bf7 {[%clk 0:00:48]}  Bc8 {[%clk 0:00:17]} 38. Bc4 {[%clk 0:00:43]}  Bb7 {[%clk 0:00:17]} 39. Be2 {[%clk 0:00:41]}  Ke6 {[%clk 0:00:16]} 40. Bg4+ {[%clk 0:00:33]}  Kd6 {[%clk 0:00:16]} 41. Bh3 {[%clk 0:00:28]}  h5 {[%clk 0:00:13]} 42. Ka5 {[%clk 0:00:24]}  h4 {[%clk 0:00:12]} 43. Kb5 {[%clk 0:00:24]}  Kc7 {[%clk 0:00:08]} 44. Kc5 {[%clk 0:00:24]}  Be4 {[%clk 0:00:08]} 45. Be6 {[%clk 0:00:22]}  Bf3 {[%clk 0:00:08]} 46. Bd5 {[%clk 0:00:20]}  Bg4 {[%clk 0:00:09]} 47. Be4 {[%clk 0:00:16]}  Be6 {[%clk 0:00:09]} 48. Bd3 {[%clk 0:00:16]}  Bf7 {[%clk 0:00:09]} 49. Bf5 {[%clk 0:00:15]}  Bb3 {[%clk 0:00:09]} 50. Bg4 {[%clk 0:00:14]}  Bf7 {[%clk 0:00:09]} 51. Bf3 {[%clk 0:00:13]}  Be6 {[%clk 0:00:10]} 52. Bd5 {[%clk 0:00:13]}  Bg4 {[%clk 0:00:10]} 53. Bc4 {[%clk 0:00:11]}  Bf3 {[%clk 0:00:10]} 54. Kd4 {[%clk 0:00:10]}  Kd6 {[%clk 0:00:10]} 55. Ke3 {[%clk 0:00:10]}  Bd5 {[%clk 0:00:08]} 56. Bd3 {[%clk 0:00:09]}  Bh1 {[%clk 0:00:06]} 57. Be4 {[%clk 0:00:06]}  Bxe4 {[%clk 0:00:02]} 58. Kxe4 {[%clk 0:00:07]}  Ke6 {[%clk 0:00:02]} 59. f5+ {[%clk 0:00:03]}  Kd6 {[%clk 0:00:03]} 60. Kf4 {[%clk 0:00:03]}  Kd5 {[%clk 0:00:04]} 61. Kg4 {[%clk 0:00:02]}  Kc4 {[%clk 0:00:04]} 62. Kxh4 {[%clk 0:00:02]}  Kxb4 {[%clk 0:00:04]} 63. Kg4 {[%clk 0:00:01]}  a5 {[%clk 0:00:05]} 64. h4 {[%clk 0:00:01]}  a4 {[%clk 0:00:06]} 65. h5 {[%clk 0:00:02]}  a3 {[%clk 0:00:07]} 66. h6 {[%clk 0:00:02]}  a2 {[%clk 0:00:08]} 67. h7 {[%clk 0:00:03]}  a1=Q {[%clk 0:00:09]} 68. h8=Q {[%clk 0:00:03]}  Qg1+ {[%clk 0:00:09]} 69. Kf3 {[%clk 0:00:03]}  Qf1+ {[%clk 0:00:08]} 70. Ke4 {[%clk 0:00:03]}  Qe2+ {[%clk 0:00:09]} 71. Kf4 {[%clk 0:00:02]}  Qe5+ {[%clk 0:00:09]} 72. Kg4 {[%clk 0:00:02]}  Qe4+ {[%clk 0:00:10]} 73. Kg3 {[%clk 0:00:02]}  Qe5+ {[%clk 0:00:09]} 74. Kg4 {[%clk 0:00:02]}  Qe4+ {[%clk 0:00:10]} 75. Kg3 {[%clk 0:00:03]}  Qe3+ {[%clk 0:00:09]} 76. Kg4 {[%clk 0:00:02]}  Qg5+ {[%clk 0:00:10]} 77. Kf3 {[%clk 0:00:02]}  Qxf5+ {[%clk 0:00:11]} 78. Ke3 {[%clk 0:00:03]}  Qe5+ {[%clk 0:00:11]} 79. Kf3 {[%clk 0:00:03]}  Kc3 {[%clk 0:00:09]} 80. Qc8+ {[%clk 0:00:02]}  Kd2 {[%clk 0:00:10]} 81. Qd7+ {[%clk 0:00:01]}  Ke1 {[%clk 0:00:09]} 82. Qd3 {[%clk 0:00:01]}  Qh5+ {[%clk 0:00:08]} 83. Kf4 {[%clk 0:00:01]}  Qg5+ {[%clk 0:00:08]} 84. Kf3 {[%clk 0:00:01]}  Qh5+ {[%clk 0:00:09]} 85. Kf4 {[%clk 0:00:02]}  Qh4+ {[%clk 0:00:10]} 86. Kf3 {[%clk 0:00:01]}  Qh3+ {[%clk 0:00:10]} 87. Ke4 {[%clk 0:00:02]}  Qg4+ {[%clk 0:00:09]} 88. Ke3 {[%clk 0:00:01]}  Qg3+ {[%clk 0:00:09]} 89. Kd4 {[%clk 0:00:01]}  Qe5+ {[%clk 0:00:09]} 90. Kc4 {[%clk 0:00:02]}  Kf2 {[%clk 0:00:09]} 91. Qh7 {[%clk 0:00:01]}  Kg3 {[%clk 0:00:07]} 92. Qg6+ {[%clk 0:00:01]}  Kf3 {[%clk 0:00:07]} 93. Qf7 {[%clk 0:00:01]}  f5 {[%clk 0:00:07]} 94. Kb3 {[%clk 0:00:01]}  f4 {[%clk 0:00:06]} 95. Qh5+ {[%clk 0:00:01]}  Qxh5 {[%clk 0:00:06]} 0-1


[Site "https://www.chess.com"]

[Event "Titled Tuesday Blitz December 27 Early 2022"]
[White "Zubritskiy, Artyom"]
[Black "Donskov, Anatoly"]
[WhiteFideId "4181247"]
[BlackFideId "24143413"]
[WhiteElo "2442"]
[BlackElo "2279"]
[Result "1-0"]
[Round "05"]
[TimeControl "180+2"]
[Date "2022.12.27"]
[WhiteClock "0:00:17"]
[BlackClock "0:00:04"]

1. c4 {[%clk 0:03:00]}  e6 {[%clk 0:02:58]} 2. d4 {[%clk 0:03:00]}  d5 {[%clk 0:02:49]} 3. Nf3 {[%clk 0:03:00]}  Nf6 {[%clk 0:02:45]} 4. g3 {[%clk 0:03:00]}  dxc4 {[%clk 0:02:43]} 5. Bg2 {[%clk 0:03:00]}  a6 {[%clk 0:02:43]} 6. Ne5 {[%clk 0:02:55]}  Bb4+ {[%clk 0:02:42]} 7. Nc3 {[%clk 0:02:48]}  Nd5 {[%clk 0:02:42]} 8. Bd2 {[%clk 0:02:43]}  Nb6 {[%clk 0:02:42]} 9. e3 {[%clk 0:02:21]}  N8d7 {[%clk 0:02:25]} 10. f4 {[%clk 0:02:08]}  O-O {[%clk 0:02:19]} 11. O-O {[%clk 0:02:04]}  c5 {[%clk 0:02:08]} 12. a3 {[%clk 0:01:59]}  Ba5 {[%clk 0:02:07]} 13. Qe2 {[%clk 0:01:19]}  cxd4 {[%clk 0:02:05]} 14. exd4 {[%clk 0:01:19]}  Nf6 {[%clk 0:02:02]} 15. Rad1 {[%clk 0:01:11]}  Nbd5 {[%clk 0:01:38]} 16. Nxc4 {[%clk 0:01:06]}  Bc7 {[%clk 0:01:38]} 17. Ne5 {[%clk 0:01:02]}  b5 {[%clk 0:01:30]} 18. f5 {[%clk 0:00:56]}  Bb6 {[%clk 0:01:17]} 19. Bg5 {[%clk 0:00:52]}  Bb7 {[%clk 0:01:01]} 20. Bxf6 {[%clk 0:00:33]}  gxf6 {[%clk 0:00:58]} 21. fxe6 {[%clk 0:00:22]}  fxe6 {[%clk 0:00:52]} 22. Qg4+ {[%clk 0:00:20]}  Kh8 {[%clk 0:00:51]} 23. Qxe6 {[%clk 0:00:21]}  fxe5 {[%clk 0:00:15]} 24. Qxe5+ {[%clk 0:00:21]}  Kg8 {[%clk 0:00:12]} 25. Nxd5 {[%clk 0:00:17]}  Ba7 {[%clk 0:00:04]} 26. Ne7+ {[%clk 0:00:17]} 1-0


[Site "https://www.chess.com"]

[Event "Titled Tuesday Blitz December 27 Early 2022"]
[White "Balakrishnan, Praveen"]
[Black "Akylbekov, Nasyr"]
[WhiteFideId "2064871"]
[BlackFideId "13800353"]
[WhiteElo "2529"]
[BlackElo "2239"]
[Result "1-0"]
[Round "06"]
[TimeControl "180+2"]
[Date "2022.12.27"]
[WhiteClock "0:01:33"]
[BlackClock "0:00:11"]

1. e4 {[%clk 0:03:00]}  e5 {[%clk 0:02:59]} 2. Nf3 {[%clk 0:02:59]}  Nc6 {[%clk 0:02:57]} 3. Bb5 {[%clk 0:02:59]}  a6 {[%clk 0:02:57]} 4. Ba4 {[%clk 0:02:59]}  Nf6 {[%clk 0:02:57]} 5. O-O {[%clk 0:02:58]}  Be7 {[%clk 0:02:58]} 6. d3 {[%clk 0:02:58]}  b5 {[%clk 0:02:58]} 7. Bb3 {[%clk 0:02:56]}  O-O {[%clk 0:02:59]} 8. a3 {[%clk 0:02:49]}  d5 {[%clk 0:02:55]} 9. exd5 {[%clk 0:02:46]}  Nxd5 {[%clk 0:02:56]} 10. h3 {[%clk 0:02:46]}  Bf6 {[%clk 0:02:49]} 11. Nbd2 {[%clk 0:02:42]}  Nd4 {[%clk 0:02:37]} 12. Nxd4 {[%clk 0:02:38]}  exd4 {[%clk 0:02:38]} 13. Ne4 {[%clk 0:02:38]}  Bb7 {[%clk 0:02:36]} 14. Nc5 {[%clk 0:02:32]}  Bc6 {[%clk 0:02:29]} 15. Qg4 {[%clk 0:02:32]}  Kh8 {[%clk 0:01:50]} 16. Re1 {[%clk 0:02:29]}  Re8 {[%clk 0:01:24]} 17. Bd2 {[%clk 0:02:27]}  Rxe1+ {[%clk 0:01:13]} 18. Rxe1 {[%clk 0:02:27]}  g6 {[%clk 0:01:09]} 19. Bh6 {[%clk 0:02:20]}  Qd6 {[%clk 0:00:14]} 20. Ne4 {[%clk 0:02:12]}  Qe7 {[%clk 0:00:14]} 21. Re2 {[%clk 0:02:00]}  Bg7 {[%clk 0:00:15]} 22. Bxg7+ {[%clk 0:01:53]}  Kxg7 {[%clk 0:00:15]} 23. Nc3 {[%clk 0:01:54]}  dxc3 {[%clk 0:00:12]} 24. Rxe7 {[%clk 0:01:53]}  Nxe7 {[%clk 0:00:10]} 25. Qd4+ {[%clk 0:01:51]}  Kg8 {[%clk 0:00:10]} 26. Qf6 {[%clk 0:01:47]}  Nd5 {[%clk 0:00:10]} 27. Qxc6 {[%clk 0:01:38]}  cxb2 {[%clk 0:00:10]} 28. Qxa8+ {[%clk 0:01:39]}  Kg7 {[%clk 0:00:11]} 29. Qxd5 {[%clk 0:01:39]}  b1=Q+ {[%clk 0:00:11]} 30. Kh2 {[%clk 0:01:40]}  Qf1 {[%clk 0:00:11]} 31. Qxf7+ {[%clk 0:01:40]}  Kh6 {[%clk 0:00:12]} 32. Qf8+ {[%clk 0:01:39]}  Kg5 {[%clk 0:00:11]} 33. h4+ {[%clk 0:01:33]}  Kh5 {[%clk 0:00:11]} 1-0


[Site "https://www.chess.com"]

[Event "Titled Tuesday Blitz December 27 Early 2022"]
[White "Bas Mas, Jose Joaquin"]
[Black "Orujov, Elshad"]
[WhiteFideId "22219064"]
[BlackFideId "13403540"]
[WhiteElo "2197"]
[BlackElo "2304"]
[Result "1-0"]
[Round "06"]
[TimeControl "180+2"]
[Date "2022.12.27"]
[WhiteClock "0:02:38"]
[BlackClock "0:02:44"]

1. e4 {[%clk 0:03:00]}  c5 {[%clk 0:02:59]} 2. Nc3 {[%clk 0:03:00]}  d6 {[%clk 0:02:59]} 3. Bb5+ {[%clk 0:02:56]}  Nd7 {[%clk 0:02:58]} 4. d3 {[%clk 0:02:55]}  Nf6 {[%clk 0:02:58]} 5. f4 {[%clk 0:02:54]}  g6 {[%clk 0:02:58]} 6. Nf3 {[%clk 0:02:54]}  Bg7 {[%clk 0:02:58]} 7. O-O {[%clk 0:02:54]}  O-O {[%clk 0:02:58]} 8. a4 {[%clk 0:02:53]}  a6 {[%clk 0:02:58]} 9. Bc4 {[%clk 0:02:53]}  Rb8 {[%clk 0:02:55]} 10. Qe1 {[%clk 0:02:49]}  Ra8 {[%clk 0:02:50]} 11. e5 {[%clk 0:02:42]}  dxe5 {[%clk 0:02:46]} 12. fxe5 {[%clk 0:02:42]}  Ng4 {[%clk 0:02:44]} 13. e6 {[%clk 0:02:41]}  fxe6 {[%clk 0:02:44]} 14. Bxe6+ {[%clk 0:02:38]} 1-0


[Site "https://www.chess.com"]

[Event "Titled Tuesday Blitz December 27 Early 2022"]
[White "Bashirli, Saadat"]
[Black "Sovetov, Oleksandr"]
[WhiteFideId "13429990"]
[BlackFideId "34105786"]
[WhiteElo "1571"]
[BlackElo "1976"]
[Result "0-1"]
[Round "06"]
[TimeControl "180+2"]
[Date "2022.12.27"]
[WhiteClock "0:00:01"]
[BlackClock "0:00:19"]

1. d4 {[%clk 0:03:00]}  Nf6 {[%clk 0:02:53]} 2. c4 {[%clk 0:03:00]}  e6 {[%clk 0:02:53]} 3. Nc3 {[%clk 0:02:59]}  Bb4 {[%clk 0:02:53]} 4. e3 {[%clk 0:02:58]}  O-O {[%clk 0:02:51]} 5. Bd3 {[%clk 0:02:56]}  d5 {[%clk 0:02:50]} 6. a3 {[%clk 0:02:54]}  Bxc3+ {[%clk 0:02:49]} 7. bxc3 {[%clk 0:02:55]}  dxc4 {[%clk 0:02:48]} 8. Bxc4 {[%clk 0:02:55]}  c5 {[%clk 0:02:46]} 9. Nf3 {[%clk 0:02:52]}  Qc7 {[%clk 0:02:43]} 10. Bd3 {[%clk 0:02:50]}  Nc6 {[%clk 0:02:40]} 11. O-O {[%clk 0:02:49]}  e5 {[%clk 0:02:39]} 12. dxe5 {[%clk 0:02:46]}  Nxe5 {[%clk 0:02:39]} 13. Nxe5 {[%clk 0:02:46]}  Qxe5 {[%clk 0:02:40]} 14. Qc2 {[%clk 0:02:43]}  c4 {[%clk 0:02:30]} 15. Bxc4 {[%clk 0:02:40]}  Ng4 {[%clk 0:02:28]} 16. f4 {[%clk 0:02:37]}  Qc5 {[%clk 0:02:28]} 17. Bd3 {[%clk 0:02:36]}  f5 {[%clk 0:02:17]} 18. Re1 {[%clk 0:02:25]}  b6 {[%clk 0:02:12]} 19. a4 {[%clk 0:02:17]}  Re8 {[%clk 0:01:50]} 20. Ba3 {[%clk 0:02:14]}  Qc6 {[%clk 0:01:41]} 21. Bxf5 {[%clk 0:02:05]}  Bxf5 {[%clk 0:01:31]} 22. Qxf5 {[%clk 0:02:02]}  Nxe3 {[%clk 0:01:31]} 23. Qg5 {[%clk 0:01:56]}  Nc2 {[%clk 0:01:13]} 24. Rxe8+ {[%clk 0:01:24]}  Rxe8 {[%clk 0:01:14]} 25. Ra2 {[%clk 0:01:14]}  Re1+ {[%clk 0:01:05]} 26. Kf2 {[%clk 0:01:12]}  Qe8 {[%clk 0:01:03]} 27. Qd5+ {[%clk 0:00:58]}  Kh8 {[%clk 0:01:01]} 28. Qd3 {[%clk 0:00:52]}  Rf1+ {[%clk 0:00:49]} 29. Kg3 {[%clk 0:00:40]}  Qe1+ {[%clk 0:00:49]} 30. Kh3 {[%clk 0:00:35]}  Qe6+ {[%clk 0:00:45]} 31. Kg3 {[%clk 0:00:25]}  Qxa2 {[%clk 0:00:41]} 32. Qxf1 {[%clk 0:00:15]}  Nxa3 {[%clk 0:00:39]} 33. Qa6 {[%clk 0:00:11]}  Qc4 {[%clk 0:00:32]} 34. Qxa7 {[%clk 0:00:10]}  Qxc3+ {[%clk 0:00:32]} 35. Kf2 {[%clk 0:00:09]}  Qd4+ {[%clk 0:00:29]} 36. Kf3 {[%clk 0:00:08]}  h6 {[%clk 0:00:28]} 37. Qb8+ {[%clk 0:00:07]}  Kh7 {[%clk 0:00:28]} 38. Qe8 {[%clk 0:00:06]}  Nc4 {[%clk 0:00:26]} 39. Qc8 {[%clk 0:00:02]}  Qe3+ {[%clk 0:00:20]} 40. Kg4 {[%clk 0:00:03]}  Qe2+ {[%clk 0:00:20]} 41. Kg3 {[%clk 0:00:03]}  Ne3 {[%clk 0:00:19]} 42. Qd7 {[%clk 0:00:01]}  Qxg2+ {[%clk 0:00:18]} 43. Kh4 {[%clk 0:00:02]}  Qxh2+ {[%clk 0:00:18]} 44. Qh3 {[%clk 0:00:01]}  Qxf4+ {[%clk 0:00:19]} 0-1


[Site "https://www.chess.com"]

[Event "Titled Tuesday Blitz December 27 Early 2022"]
[White "Bazarov, Konstantin"]
[Black "Kleiman, Jake"]
[WhiteFideId "4137000"]
[BlackFideId "2020041"]
[WhiteElo "2235"]
[BlackElo "2399"]
[Result "0-1"]
[Round "06"]
[TimeControl "180+2"]
[Date "2022.12.27"]
[WhiteClock "0:00:04"]
[BlackClock "0:00:09"]

1. c4 {[%clk 0:02:58]}  e6 {[%clk 0:02:58]} 2. Nf3 {[%clk 0:02:58]}  Nf6 {[%clk 0:02:59]} 3. d4 {[%clk 0:02:58]}  Bb4+ {[%clk 0:02:56]} 4. Bd2 {[%clk 0:02:57]}  Bxd2+ {[%clk 0:02:56]} 5. Nbxd2 {[%clk 0:02:57]}  O-O {[%clk 0:02:57]} 6. e4 {[%clk 0:02:57]}  d6 {[%clk 0:02:58]} 7. g3 {[%clk 0:02:55]}  Qe7 {[%clk 0:02:53]} 8. Bg2 {[%clk 0:02:54]}  e5 {[%clk 0:02:54]} 9. d5 {[%clk 0:02:53]}  a5 {[%clk 0:02:53]} 10. O-O {[%clk 0:02:51]}  Na6 {[%clk 0:02:52]} 11. Ne1 {[%clk 0:02:51]}  Nc5 {[%clk 0:02:51]} 12. Qc2 {[%clk 0:02:51]}  c6 {[%clk 0:02:34]} 13. b3 {[%clk 0:02:48]}  g6 {[%clk 0:02:25]} 14. Nd3 {[%clk 0:02:44]}  Nfd7 {[%clk 0:02:24]} 15. Nxc5 {[%clk 0:02:41]}  Nxc5 {[%clk 0:02:24]} 16. Rfe1 {[%clk 0:02:41]}  Bd7 {[%clk 0:02:19]} 17. a3 {[%clk 0:02:35]}  cxd5 {[%clk 0:02:18]} 18. exd5 {[%clk 0:02:29]}  Bf5 {[%clk 0:02:15]} 19. Qc3 {[%clk 0:02:28]}  Qc7 {[%clk 0:02:05]} 20. Bf1 {[%clk 0:02:18]}  Bd7 {[%clk 0:01:59]} 21. b4 {[%clk 0:02:17]}  Na4 {[%clk 0:01:54]} 22. Qb3 {[%clk 0:02:15]}  f5 {[%clk 0:01:54]} 23. Rac1 {[%clk 0:02:12]}  axb4 {[%clk 0:01:52]} 24. axb4 {[%clk 0:02:11]}  b6 {[%clk 0:01:51]} 25. h4 {[%clk 0:02:01]}  Kg7 {[%clk 0:01:48]} 26. Qe3 {[%clk 0:01:58]}  Rac8 {[%clk 0:01:41]} 27. Qb3 {[%clk 0:01:52]}  Qb7 {[%clk 0:01:34]} 28. Be2 {[%clk 0:01:44]}  Rfe8 {[%clk 0:01:28]} 29. Ra1 {[%clk 0:01:42]}  Ra8 {[%clk 0:01:27]} 30. Ra3 {[%clk 0:01:42]}  b5 {[%clk 0:01:27]} 31. Rea1 {[%clk 0:01:26]}  Nb6 {[%clk 0:01:15]} 32. Rxa8 {[%clk 0:01:08]}  Rxa8 {[%clk 0:01:16]} 33. Rxa8 {[%clk 0:01:07]}  Qxa8 {[%clk 0:01:17]} 34. Qe3 {[%clk 0:00:49]}  Qb7 {[%clk 0:00:35]} 35. h5 {[%clk 0:00:45]}  Nxc4 {[%clk 0:00:30]} 36. Nxc4 {[%clk 0:00:29]}  bxc4 {[%clk 0:00:31]} 37. Qd2 {[%clk 0:00:19]}  Bb5 {[%clk 0:00:27]} 38. Bf3 {[%clk 0:00:14]}  Qe7 {[%clk 0:00:23]} 39. h6+ {[%clk 0:00:13]}  Kf7 {[%clk 0:00:23]} 40. Qe3 {[%clk 0:00:13]}  Qc7 {[%clk 0:00:21]} 41. g4 {[%clk 0:00:11]}  f4 {[%clk 0:00:20]} 42. Qc1 {[%clk 0:00:11]}  c3 {[%clk 0:00:20]} 43. Be4 {[%clk 0:00:10]}  Qc4 {[%clk 0:00:20]} 44. f3 {[%clk 0:00:07]}  Qd4+ {[%clk 0:00:17]} 45. Kh1 {[%clk 0:00:05]}  Qxb4 {[%clk 0:00:15]} 46. Qa1 {[%clk 0:00:04]}  Ba4 {[%clk 0:00:13]} 47. Qf1 {[%clk 0:00:03]}  c2 {[%clk 0:00:12]} 48. Bxc2 {[%clk 0:00:03]}  Bxc2 {[%clk 0:00:11]} 49. Qa6 {[%clk 0:00:03]}  Qe1+ {[%clk 0:00:10]} 50. Kh2 {[%clk 0:00:03]}  Qg3+ {[%clk 0:00:10]} 51. Kh1 {[%clk 0:00:03]}  Qxf3+ {[%clk 0:00:10]} 52. Kh2 {[%clk 0:00:04]}  Qf2+ {[%clk 0:00:09]} 53. Kh3 {[%clk 0:00:04]}  Qg3# {[%clk 0:00:09]} 0-1


[Site "https://www.chess.com"]

[Event "Titled Tuesday Blitz December 27 Early 2022"]
[White "Berezin, Viktor"]
[Black "gshwbedhkhd"]
[WhiteFideId "14107872"]
[WhiteElo "2307"]
[BlackElo "2577"]
[Result "1-0"]
[Round "06"]
[TimeControl "180+2"]
[Date "2022.12.27"]
[WhiteClock "0:00:10"]
[BlackClock "0:00:07"]

1. d4 {[%clk 0:03:00]}  f5 {[%clk 0:02:58]} 2. g3 {[%clk 0:03:00]}  Nf6 {[%clk 0:02:58]} 3. Bg2 {[%clk 0:03:00]}  g6 {[%clk 0:02:59]} 4. Nh3 {[%clk 0:03:00]}  Bg7 {[%clk 0:02:59]} 5. Nf4 {[%clk 0:03:01]}  d6 {[%clk 0:02:48]} 6. h4 {[%clk 0:02:58]}  e5 {[%clk 0:02:46]} 7. dxe5 {[%clk 0:02:47]}  dxe5 {[%clk 0:02:47]} 8. Nd5 {[%clk 0:02:48]}  Nxd5 {[%clk 0:02:33]} 9. Bg5 {[%clk 0:02:30]}  Nf6 {[%clk 0:02:18]} 10. Qxd8+ {[%clk 0:02:23]}  Kxd8 {[%clk 0:02:19]} 11. h5 {[%clk 0:02:21]}  h6 {[%clk 0:02:04]} 12. Bxf6+ {[%clk 0:02:15]}  Bxf6 {[%clk 0:02:05]} 13. hxg6 {[%clk 0:02:15]}  Nc6 {[%clk 0:02:03]} 14. Nc3 {[%clk 0:02:15]}  Be6 {[%clk 0:02:00]} 15. O-O-O+ {[%clk 0:02:15]}  Ke7 {[%clk 0:02:00]} 16. Rh5 {[%clk 0:01:59]}  Bg7 {[%clk 0:01:53]} 17. Nd5+ {[%clk 0:01:38]}  Bxd5 {[%clk 0:01:52]} 18. Rxd5 {[%clk 0:01:39]}  Rad8 {[%clk 0:01:42]} 19. Rxf5 {[%clk 0:01:36]}  Rhf8 {[%clk 0:01:24]} 20. Rxf8 {[%clk 0:01:15]}  Kxf8 {[%clk 0:01:10]} 21. c3 {[%clk 0:01:05]}  Rxd5 {[%clk 0:01:03]} 22. Bxd5 {[%clk 0:01:06]}  Nd8 {[%clk 0:01:00]} 23. Kd2 {[%clk 0:01:01]}  Ke7 {[%clk 0:00:59]} 24. Ke3 {[%clk 0:01:00]}  c6 {[%clk 0:00:54]} 25. Be4 {[%clk 0:01:00]}  Ne6 {[%clk 0:00:54]} 26. f4 {[%clk 0:00:59]}  exf4+ {[%clk 0:00:49]} 27. gxf4 {[%clk 0:01:00]}  Kf6 {[%clk 0:00:48]} 28. Kf3 {[%clk 0:00:55]}  Bf8 {[%clk 0:00:47]} 29. Bb1 {[%clk 0:00:52]}  Bd6 {[%clk 0:00:43]} 30. e3 {[%clk 0:00:39]}  h5 {[%clk 0:00:34]} 31. Kg3 {[%clk 0:00:35]}  Bc5 {[%clk 0:00:21]} 32. e4 {[%clk 0:00:33]}  Be3 {[%clk 0:00:18]} 33. e5+ {[%clk 0:00:27]}  Kg7 {[%clk 0:00:16]} 34. f5 {[%clk 0:00:28]}  Nc5 {[%clk 0:00:11]} 35. f6+ {[%clk 0:00:27]}  Kg8 {[%clk 0:00:10]} 36. Kf3 {[%clk 0:00:17]}  Bc1 {[%clk 0:00:08]} 37. g7 {[%clk 0:00:17]}  Nd7 {[%clk 0:00:08]} 38. Ke4 {[%clk 0:00:15]}  Bxb2 {[%clk 0:00:07]} 39. a4 {[%clk 0:00:11]}  Nc5+ {[%clk 0:00:07]} 40. Kf5 {[%clk 0:00:10]} 1-0


[Site "https://www.chess.com"]

[Event "Titled Tuesday Blitz December 27 Early 2022"]
[White "Bilan, Danila"]
[Black "Fernandez Siles, Luis"]
[WhiteFideId "24161918"]
[BlackFideId "2209420"]
[WhiteElo "2303"]
[BlackElo "2218"]
[Result "0-1"]
[Round "06"]
[TimeControl "180+2"]
[Date "2022.12.27"]
[WhiteClock "0:00:04"]
[BlackClock "0:00:32"]

1. d4 {[%clk 0:03:00]}  Nf6 {[%clk 0:02:59]} 2. Nf3 {[%clk 0:03:00]}  g6 {[%clk 0:02:59]} 3. Bg5 {[%clk 0:03:00]}  Bg7 {[%clk 0:02:59]} 4. c3 {[%clk 0:03:00]}  O-O {[%clk 0:02:57]} 5. Nbd2 {[%clk 0:03:00]}  d5 {[%clk 0:02:57]} 6. e3 {[%clk 0:03:00]}  b6 {[%clk 0:02:57]} 7. Bd3 {[%clk 0:03:00]}  c5 {[%clk 0:02:56]} 8. e4 {[%clk 0:02:53]}  Bb7 {[%clk 0:02:49]} 9. e5 {[%clk 0:02:47]}  Ne4 {[%clk 0:02:47]} 10. Bh4 {[%clk 0:02:36]}  Nd7 {[%clk 0:02:23]} 11. O-O {[%clk 0:02:29]}  f6 {[%clk 0:02:04]} 12. Nxe4 {[%clk 0:01:56]}  dxe4 {[%clk 0:02:02]} 13. Bc4+ {[%clk 0:01:54]}  Kh8 {[%clk 0:01:58]} 14. exf6 {[%clk 0:01:27]}  exf6 {[%clk 0:01:51]} 15. Nd2 {[%clk 0:00:52]}  cxd4 {[%clk 0:01:49]} 16. cxd4 {[%clk 0:00:49]}  g5 {[%clk 0:01:36]} 17. Bg3 {[%clk 0:00:47]}  f5 {[%clk 0:01:36]} 18. Bd6 {[%clk 0:00:39]}  Rf6 {[%clk 0:01:36]} 19. Ba3 {[%clk 0:00:30]}  Nf8 {[%clk 0:01:12]} 20. Nb3 {[%clk 0:00:19]}  Ng6 {[%clk 0:01:04]} 21. Nc1 {[%clk 0:00:12]}  Nh4 {[%clk 0:01:01]} 22. Ne2 {[%clk 0:00:08]}  f4 {[%clk 0:00:49]} 23. d5 {[%clk 0:00:08]}  Qc8 {[%clk 0:00:42]} 24. Nd4 {[%clk 0:00:07]}  Qxc4 {[%clk 0:00:37]} 25. Ne6 {[%clk 0:00:05]}  Qxd5 {[%clk 0:00:35]} 26. Qxd5 {[%clk 0:00:03]}  Bxd5 {[%clk 0:00:36]} 27. Nxg5 {[%clk 0:00:03]}  e3 {[%clk 0:00:32]} 28. fxe3 {[%clk 0:00:03]}  Bxg2 {[%clk 0:00:32]} 29. Rxf4 {[%clk 0:00:03]}  Rxf4 {[%clk 0:00:32]} 30. exf4 {[%clk 0:00:04]}  Bd4# {[%clk 0:00:32]} 0-1


[Site "https://www.chess.com"]